[Event "Late-Titled-Tuesday-Blitz-October-03-2023"]
[Site "Chess.com"]
[Date "2023.10.03"]
[Round "4"]
[White "The_Princess_Moon"]
[Black "Pomberito2"]
[Result "0-1"]
[WhiteElo "2294"]
[BlackElo "2474"]
[TimeControl "180+1"]
[EndTime "14:38:39 PDT"]
[Termination "Pomberito2 won by checkmate"]

1. e4 {[%clk 0:03:00.9]} 1... e6 {[%clk 0:02:57.9]} 2. Nf3 {[%clk 0:03:00.9]}
2... c5 {[%clk 0:02:56]} 3. c3 {[%clk 0:02:56.4]} 3... d5 {[%clk 0:02:50.5]} 4.
e5 {[%clk 0:02:56.4]} 4... Nc6 {[%clk 0:02:49.8]} 5. Bb5 {[%clk 0:02:55.5]} 5...
Qb6 {[%clk 0:02:46.9]} 6. Bxc6+ {[%clk 0:02:56.4]} 6... bxc6 {[%clk 0:02:44.3]}
7. d4 {[%clk 0:02:56.2]} 7... Ba6 {[%clk 0:02:42.6]} 8. a3 {[%clk 0:02:33.6]}
8... cxd4 {[%clk 0:02:40.4]} 9. Nxd4 {[%clk 0:02:27]} 9... Ne7 {[%clk
0:02:34.3]} 10. Qa4 {[%clk 0:02:20.4]} 10... Rc8 {[%clk 0:02:32.9]} 11. Be3
{[%clk 0:02:01.7]} 11... Qb7 {[%clk 0:02:16.1]} 12. Nd2 {[%clk 0:01:48.4]} 12...
Ng6 {[%clk 0:02:14]} 13. f4 {[%clk 0:01:41.6]} 13... Be7 {[%clk 0:02:12.6]} 14.
b4 {[%clk 0:01:37.3]} 14... O-O {[%clk 0:02:10.1]} 15. Kf2 {[%clk 0:01:23.8]}
15... c5 {[%clk 0:02:05.8]} 16. N4f3 {[%clk 0:01:07.8]} 16... d4 {[%clk
0:01:56]} 17. cxd4 {[%clk 0:01:03.8]} 17... cxd4 {[%clk 0:01:55.9]} 18. Nxd4
{[%clk 0:00:59.3]} 18... Rfd8 {[%clk 0:01:50.2]} 19. N2f3 {[%clk 0:00:54.2]}
19... Bd3 {[%clk 0:01:36.9]} 20. Rhd1 {[%clk 0:00:47.4]} 20... Be4 {[%clk
0:01:36]} 21. Rac1 {[%clk 0:00:41.7]} 21... Bxf3 {[%clk 0:01:22.8]} 22. gxf3
{[%clk 0:00:41.4]} 22... Rxc1 {[%clk 0:01:20.1]} 23. Bxc1 {[%clk 0:00:37.2]}
23... Nh4 {[%clk 0:01:10.4]} 24. Nc6 {[%clk 0:00:30.6]} 24... Rxd1 {[%clk
0:00:55.2]} 25. Nxe7+ {[%clk 0:00:30.1]} 25... Qxe7 {[%clk 0:00:41]} 26. Qxd1
{[%clk 0:00:31]} 26... h5 {[%clk 0:00:38.7]} 27. Be3 {[%clk 0:00:29.9]} 27...
Nf5 {[%clk 0:00:35.4]} 28. Qd3 {[%clk 0:00:27.2]} 28... Qh4+ {[%clk 0:00:34]}
29. Kg2 {[%clk 0:00:23.3]} 29... Qe7 {[%clk 0:00:32.9]} 30. Bf2 {[%clk
0:00:20.4]} 30... h4 {[%clk 0:00:30.1]} 31. Qa6 {[%clk 0:00:19.4]} 31... Qd7
{[%clk 0:00:23.9]} 32. Qxa7 {[%clk 0:00:18]} 32... Qd3 {[%clk 0:00:23.6]} 33.
Qa8+ {[%clk 0:00:14.4]} 33... Kh7 {[%clk 0:00:23]} 34. Qe4 {[%clk 0:00:14.1]}
34... Qxa3 {[%clk 0:00:20.8]} 35. b5 {[%clk 0:00:12.8]} 35... Qb3 {[%clk
0:00:15.4]} 36. b6 {[%clk 0:00:12.8]} 36... Qd1 {[%clk 0:00:10.9]} 37. b7 {[%clk
0:00:12.1]} 37... h3+ {[%clk 0:00:11.1]} 38. Kxh3 {[%clk 0:00:10.1]} 38... Qf1+
{[%clk 0:00:11.6]} 39. Kg4 {[%clk 0:00:07.3]} 39... Qxf2 {[%clk 0:00:11.4]} 40.
b8=Q {[%clk 0:00:05.7]} 40... Qh4# {[%clk 0:00:11.4]} 0-1

[Event "Late-Titled-Tuesday-Blitz-October-03-2023"]
[Site "Chess.com"]
[Date "2023.10.03"]
[Round "4"]
[White "NovikovaGalina"]
[Black "talaicito"]
[Result "0-1"]
[WhiteElo "2431"]
[BlackElo "2183"]
[TimeControl "180+1"]
[EndTime "14:38:39 PDT"]
[Termination "talaicito won by resignation"]

1. e4 {[%clk 0:03:00.9]} 1... c5 {[%clk 0:02:59.9]} 2. Nf3 {[%clk 0:03:01.2]}
2... d6 {[%clk 0:03:00.5]} 3. d4 {[%clk 0:03:01.7]} 3... cxd4 {[%clk 0:03:01.4]}
4. Nxd4 {[%clk 0:03:02.2]} 4... Nf6 {[%clk 0:03:02.3]} 5. Nc3 {[%clk 0:03:02.6]}
5... g6 {[%clk 0:03:03.2]} 6. Be3 {[%clk 0:03:01.3]} 6... Bg7 {[%clk 0:03:03.3]}
7. f3 {[%clk 0:03:01.8]} 7... O-O {[%clk 0:03:03.8]} 8. Qd2 {[%clk 0:03:02.5]}
8... Nc6 {[%clk 0:03:04.3]} 9. g4 {[%clk 0:03:02.8]} 9... h5 {[%clk 0:03:03.2]}
10. gxh5 {[%clk 0:03:02]} 10... Nxh5 {[%clk 0:03:02.7]} 11. O-O-O {[%clk
0:03:02.4]} 11... Bd7 {[%clk 0:02:57]} 12. Nb3 {[%clk 0:02:53.5]} 12... Ne5
{[%clk 0:02:33.6]} 13. Be2 {[%clk 0:02:51.8]} 13... Rc8 {[%clk 0:02:27.8]} 14.
Bh6 {[%clk 0:02:51.3]} 14... Nc4 {[%clk 0:01:50.5]} 15. Bxc4 {[%clk 0:02:50.4]}
15... Rxc4 {[%clk 0:01:51.4]} 16. Bxg7 {[%clk 0:02:50.5]} 16... Kxg7 {[%clk
0:01:51.1]} 17. f4 {[%clk 0:02:44.9]} 17... Qc8 {[%clk 0:01:34.9]} 18. f5 {[%clk
0:02:43]} 18... Nf6 {[%clk 0:01:14.6]} 19. Rde1 {[%clk 0:02:10.6]} 19... b5
{[%clk 0:01:09.1]} 20. fxg6 {[%clk 0:02:01.4]} 20... fxg6 {[%clk 0:01:08.7]} 21.
e5 {[%clk 0:01:59.8]} 21... dxe5 {[%clk 0:00:59]} 22. Rxe5 {[%clk 0:02:00.7]}
22... Rf7 {[%clk 0:00:58.7]} 23. Rhe1 {[%clk 0:01:51.5]} 23... b4 {[%clk
0:00:54.6]} 24. Nd5 {[%clk 0:01:44.5]} 24... Nxd5 {[%clk 0:00:52.6]} 25. Rxd5
{[%clk 0:01:45.2]} 25... Bf5 {[%clk 0:00:52.3]} 26. Nd4 {[%clk 0:01:38.4]} 26...
e6 {[%clk 0:00:34.6]} 27. Nxf5+ {[%clk 0:01:37.6]} 27... exf5 {[%clk 0:00:31.5]}
28. Rd4 {[%clk 0:01:26.7]} 28... Rfc7 {[%clk 0:00:22.9]} 29. Rxc4 {[%clk
0:01:26.3]} 29... Rxc4 {[%clk 0:00:23]} 30. Kb1 {[%clk 0:01:26.4]} 30... Qc7
{[%clk 0:00:18.2]} 31. Qg5 {[%clk 0:01:04.7]} 31... Re4 {[%clk 0:00:17.5]} 32.
Rg1 {[%clk 0:01:01.5]} 32... Qd6 {[%clk 0:00:15.8]} 33. h4 {[%clk 0:00:45.4]}
33... Qf6 {[%clk 0:00:15.8]} 34. Qd2 {[%clk 0:00:35]} 34... Rxh4 {[%clk
0:00:15]} 35. b3 {[%clk 0:00:32.8]} 35... a5 {[%clk 0:00:14.3]} 36. Qd7+ {[%clk
0:00:32.9]} 36... Kh6 {[%clk 0:00:14.1]} 37. Qe8 {[%clk 0:00:30.4]} 37... f4
{[%clk 0:00:13.4]} 38. Qe4 {[%clk 0:00:18.1]} 38... f3 {[%clk 0:00:11.9]} 39.
Rf1 {[%clk 0:00:15.6]} 39... Rxe4 {[%clk 0:00:10.7]} 40. Rh1+ {[%clk 0:00:14.3]}
40... Kg7 {[%clk 0:00:10.3]} 0-1

[Event "Late-Titled-Tuesday-Blitz-October-03-2023"]
[Site "Chess.com"]
[Date "2023.10.03"]
[Round "4"]
[White "Brown_Mamba24"]
[Black "i_like_explosions"]
[Result "1-0"]
[WhiteElo "2660"]
[BlackElo "2380"]
[TimeControl "180+1"]
[EndTime "14:38:40 PDT"]
[Termination "Brown_Mamba24 won by checkmate"]

1. d4 {[%clk 0:03:00.9]} 1... Nf6 {[%clk 0:02:59.1]} 2. c4 {[%clk 0:03:00.1]}
2... g6 {[%clk 0:02:56]} 3. Nc3 {[%clk 0:02:59.9]} 3... Bg7 {[%clk 0:02:56.2]}
4. e4 {[%clk 0:03:00.1]} 4... d6 {[%clk 0:02:55.2]} 5. Be2 {[%clk 0:03:00.7]}
5... O-O {[%clk 0:02:54.8]} 6. Be3 {[%clk 0:03:00.9]} 6... Nbd7 {[%clk
0:02:50.6]} 7. g4 {[%clk 0:02:59.4]} 7... e5 {[%clk 0:02:45.7]} 8. d5 {[%clk
0:02:58.9]} 8... a5 {[%clk 0:02:43.3]} 9. h4 {[%clk 0:02:56.8]} 9... Nc5 {[%clk
0:02:43.2]} 10. Bf3 {[%clk 0:02:57]} 10... c6 {[%clk 0:02:31.5]} 11. g5 {[%clk
0:02:52.8]} 11... Ne8 {[%clk 0:02:13.2]} 12. dxc6 {[%clk 0:02:53.1]} 12... Qb6
{[%clk 0:02:12.3]} 13. Nd5 {[%clk 0:02:47.3]} 13... Qxb2 {[%clk 0:02:11.9]} 14.
Bxc5 {[%clk 0:02:19.8]} 14... dxc5 {[%clk 0:02:11.4]} 15. Rb1 {[%clk 0:02:19.3]}
15... Qxa2 {[%clk 0:02:06.7]} 16. cxb7 {[%clk 0:02:12]} 16... Bxb7 {[%clk
0:01:58.7]} 17. Rxb7 {[%clk 0:02:12.9]} 17... Nd6 {[%clk 0:01:57.9]} 18. Ne7+
{[%clk 0:02:13]} 18... Kh8 {[%clk 0:01:58.1]} 19. Qxd6 {[%clk 0:02:10.4]} 19...
Rfd8 {[%clk 0:01:57.9]} 20. Rd7 {[%clk 0:02:09]} 20... Rxd7 {[%clk 0:01:57.6]}
21. Qxd7 {[%clk 0:02:09.9]} 21... Qb1+ {[%clk 0:01:46.4]} 22. Qd1 {[%clk
0:02:05.1]} 22... Qb4+ {[%clk 0:01:46]} 23. Kf1 {[%clk 0:02:00.8]} 23... a4
{[%clk 0:01:46.1]} 24. Kg2 {[%clk 0:01:56.9]} 24... a3 {[%clk 0:01:46.2]} 25.
Ne2 {[%clk 0:01:47.1]} 25... a2 {[%clk 0:01:46.3]} 26. Qd5 {[%clk 0:01:35.7]}
26... Rf8 {[%clk 0:01:36]} 27. h5 {[%clk 0:01:27.3]} 27... gxh5 {[%clk
0:01:36.1]} 28. Ng3 {[%clk 0:01:22.1]} 28... h4 {[%clk 0:01:27.9]} 29. Qd1
{[%clk 0:00:41]} 29... Re8 {[%clk 0:01:11.4]} 30. Ngf5 {[%clk 0:00:39.5]} 30...
Qxc4 {[%clk 0:01:03]} 31. Rxh4 {[%clk 0:00:36.9]} 31... Qe6 {[%clk 0:00:45.8]}
32. Nxg7 {[%clk 0:00:19.5]} 32... Kxg7 {[%clk 0:00:42.4]} 33. Nf5+ {[%clk
0:00:18.1]} 33... Kg8 {[%clk 0:00:40.5]} 34. Rh6 {[%clk 0:00:14.3]} 34... Qc4
{[%clk 0:00:20.6]} 35. Rf6 {[%clk 0:00:13.1]} 35... Ra8 {[%clk 0:00:19.6]} 36.
Nh6+ {[%clk 0:00:11.3]} 36... Kg7 {[%clk 0:00:19.3]} 37. Nf5+ {[%clk 0:00:09.6]}
37... Kg8 {[%clk 0:00:18.8]} 38. Qa1 {[%clk 0:00:10.2]} 38... Qb3 {[%clk
0:00:16]} 39. Rh6 {[%clk 0:00:05.9]} 39... Qb1 {[%clk 0:00:13.2]} 40. Rh1 {[%clk
0:00:06.5]} 40... Qb3 {[%clk 0:00:10.9]} 41. Qxe5 {[%clk 0:00:06.6]} 41... Kf8
{[%clk 0:00:03.9]} 42. Qh8# {[%clk 0:00:06.2]} 1-0

[Event "Late-Titled-Tuesday-Blitz-October-03-2023"]
[Site "Chess.com"]
[Date "2023.10.03"]
[Round "4"]
[White "vladislavkovalev"]
[Black "OparinGrigoriy"]
[Result "0-1"]
[WhiteElo "2875"]
[BlackElo "3003"]
[TimeControl "180+1"]
[EndTime "14:38:41 PDT"]
[Termination "OparinGrigoriy won by resignation"]

1. e4 {[%clk 0:03:00]} 1... c5 {[%clk 0:03:00.3]} 2. Nf3 {[%clk 0:03:00.3]} 2...
Nc6 {[%clk 0:03:01]} 3. Nc3 {[%clk 0:02:58.2]} 3... g6 {[%clk 0:03:00.7]} 4. d4
{[%clk 0:02:58.6]} 4... cxd4 {[%clk 0:03:01.6]} 5. Nxd4 {[%clk 0:02:59.5]} 5...
Bg7 {[%clk 0:03:02.3]} 6. Be3 {[%clk 0:03:00.2]} 6... Nf6 {[%clk 0:03:01.7]} 7.
Bc4 {[%clk 0:03:00.7]} 7... O-O {[%clk 0:03:01.4]} 8. Bb3 {[%clk 0:03:01.1]}
8... d6 {[%clk 0:03:01.5]} 9. f3 {[%clk 0:03:00.5]} 9... Bd7 {[%clk 0:03:02.2]}
10. Qd2 {[%clk 0:03:00.1]} 10... Nxd4 {[%clk 0:03:01.7]} 11. Bxd4 {[%clk
0:03:01]} 11... b5 {[%clk 0:03:02.5]} 12. O-O {[%clk 0:02:54.5]} 12... Qc7
{[%clk 0:02:59.8]} 13. Rfe1 {[%clk 0:02:48.1]} 13... a5 {[%clk 0:02:59]} 14. a4
{[%clk 0:02:42.4]} 14... bxa4 {[%clk 0:02:57.7]} 15. Bxa4 {[%clk 0:02:43.3]}
15... Bxa4 {[%clk 0:02:54.5]} 16. Rxa4 {[%clk 0:02:44.2]} 16... Rfb8 {[%clk
0:02:54.8]} 17. b3 {[%clk 0:02:01.2]} 17... Rb4 {[%clk 0:02:54.2]} 18. Qd3
{[%clk 0:00:27.9]} 18... Rc8 {[%clk 0:02:48.1]} 19. Bxf6 {[%clk 0:00:11.4]}
19... Bxf6 {[%clk 0:02:47.1]} 20. Nd5 {[%clk 0:00:12.1]} 20... Qc5+ {[%clk
0:02:43]} 21. Kf1 {[%clk 0:00:11.9]} 21... Rxa4 {[%clk 0:02:41.6]} 22. bxa4
{[%clk 0:00:10.7]} 22... Qxc2 {[%clk 0:02:39.5]} 23. Qxc2 {[%clk 0:00:10.5]}
23... Rxc2 {[%clk 0:02:40.4]} 24. Nxf6+ {[%clk 0:00:11.2]} 24... exf6 {[%clk
0:02:41.3]} 25. Rd1 {[%clk 0:00:10.8]} 25... Rc4 {[%clk 0:02:40.8]} 26. Rxd6
{[%clk 0:00:11.1]} 26... Kg7 {[%clk 0:02:41.4]} 27. Ra6 {[%clk 0:00:10.9]} 27...
Rxa4 {[%clk 0:02:41.8]} 28. Kf2 {[%clk 0:00:11.4]} 28... g5 {[%clk 0:02:25]} 29.
g4 {[%clk 0:00:11.3]} 29... Ra1 {[%clk 0:02:22.3]} 30. Kg3 {[%clk 0:00:10.3]}
30... a4 {[%clk 0:02:21.7]} 31. h4 {[%clk 0:00:10]} 31... gxh4+ {[%clk
0:02:20.9]} 32. Kxh4 {[%clk 0:00:10.5]} 32... a3 {[%clk 0:02:21.5]} 33. Kg3
{[%clk 0:00:09.5]} 33... a2 {[%clk 0:02:04.2]} 34. Kf4 {[%clk 0:00:09.9]} 34...
Kf8 {[%clk 0:02:01.8]} 35. Ra7 {[%clk 0:00:06.9]} 35... Ke8 {[%clk 0:02:01.4]}
36. Ra6 {[%clk 0:00:05.7]} 36... Kd7 {[%clk 0:02:01.1]} 37. Ra7+ {[%clk
0:00:05.5]} 37... Kc6 {[%clk 0:02:00.7]} 38. Ra6+ {[%clk 0:00:05.5]} 38... Kb5
{[%clk 0:02:00.8]} 39. Ra8 {[%clk 0:00:06.2]} 39... Kc4 {[%clk 0:02:01]} 40. Ra7
{[%clk 0:00:04.3]} 40... Kd3 {[%clk 0:01:59.2]} 41. Ra3+ {[%clk 0:00:02.6]}
41... Kc2 {[%clk 0:01:55.3]} 42. Ra7 {[%clk 0:00:02.5]} 42... h6 {[%clk
0:01:53.1]} 43. Ra6 {[%clk 0:00:02.2]} 43... Kb3 {[%clk 0:01:50]} 44. Rb6+
{[%clk 0:00:02.1]} 44... Kc4 {[%clk 0:01:49.7]} 45. Ra6 {[%clk 0:00:02.5]} 45...
Kd3 {[%clk 0:01:46.9]} 46. Ra3+ {[%clk 0:00:02.6]} 46... Ke2 {[%clk 0:01:40.3]}
47. Kf5 {[%clk 0:00:02.4]} 47... Rf1 {[%clk 0:01:40.9]} 48. Rxa2+ {[%clk
0:00:02.9]} 48... Kxf3 {[%clk 0:01:41.1]} 49. Kxf6 {[%clk 0:00:03.4]} 49...
Kxg4+ {[%clk 0:01:40.9]} 50. Ke5 {[%clk 0:00:03]} 50... h5 {[%clk 0:01:40.9]}
51. Rg2+ {[%clk 0:00:03.2]} 51... Kh3 {[%clk 0:01:37.2]} 52. Rg7 {[%clk
0:00:03.8]} 52... h4 {[%clk 0:01:37.1]} 53. Kd6 {[%clk 0:00:04]} 53... Kh2
{[%clk 0:01:34.4]} 54. e5 {[%clk 0:00:03.4]} 54... h3 {[%clk 0:01:34.3]} 55. Ke7
{[%clk 0:00:03.8]} 55... Rf5 {[%clk 0:01:34.7]} 56. Kd6 {[%clk 0:00:03.5]} 56...
Kh1 {[%clk 0:01:34.1]} 57. Rh7 {[%clk 0:00:02]} 57... h2 {[%clk 0:01:34.5]} 58.
Rg7 {[%clk 0:00:02.5]} 58... Rf2 {[%clk 0:01:34.2]} 59. Ke7 {[%clk 0:00:02.5]}
59... Rf3 {[%clk 0:01:28.5]} 60. Kd6 {[%clk 0:00:01.9]} 60... Re3 {[%clk
0:01:21.4]} 61. Rxf7 {[%clk 0:00:01.6]} 61... Kg2 {[%clk 0:01:21.5]} 62. Rg7+
{[%clk 0:00:01.9]} 62... Rg3 {[%clk 0:01:21.7]} 63. Rh7 {[%clk 0:00:01.7]} 63...
Rh3 {[%clk 0:01:22.2]} 64. Rg7+ {[%clk 0:00:02.4]} 64... Kf2 {[%clk 0:01:22.8]}
65. Rf7+ {[%clk 0:00:02.9]} 65... Ke2 {[%clk 0:01:23.3]} 66. e6 {[%clk
0:00:02.6]} 66... h1=Q {[%clk 0:01:23.6]} 67. e7 {[%clk 0:00:03.5]} 67... Rh6+
{[%clk 0:01:22.9]} 68. Kc7 {[%clk 0:00:03.4]} 68... Qc6+ {[%clk 0:01:22.1]} 0-1

[Event "Late-Titled-Tuesday-Blitz-October-03-2023"]
[Site "Chess.com"]
[Date "2023.10.03"]
[Round "4"]
[White "Battever"]
[Black "Sanyura"]
[Result "0-1"]
[WhiteElo "2513"]
[BlackElo "2667"]
[TimeControl "180+1"]
[EndTime "14:38:45 PDT"]
[Termination "Sanyura won on time"]

1. Nf3 {[%clk 0:03:00.9]} 1... d5 {[%clk 0:03:00.1]} 2. d4 {[%clk 0:02:59.3]}
2... c6 {[%clk 0:03:01]} 3. Bg5 {[%clk 0:02:59.2]} 3... Nf6 {[%clk 0:03:01.4]}
4. Nbd2 {[%clk 0:02:59.6]} 4... g6 {[%clk 0:03:01.2]} 5. Bxf6 {[%clk 0:02:45.7]}
5... exf6 {[%clk 0:03:01.8]} 6. e4 {[%clk 0:02:46.6]} 6... dxe4 {[%clk
0:03:01.7]} 7. Nxe4 {[%clk 0:02:47.5]} 7... f5 {[%clk 0:03:02.2]} 8. Neg5 {[%clk
0:02:17.3]} 8... h6 {[%clk 0:02:56]} 9. Nh3 {[%clk 0:02:15.2]} 9... Bg7 {[%clk
0:02:44.6]} 10. Bc4 {[%clk 0:02:15]} 10... O-O {[%clk 0:02:43.8]} 11. O-O {[%clk
0:02:12]} 11... Nd7 {[%clk 0:02:39.3]} 12. Nf4 {[%clk 0:02:10.5]} 12... Kh7
{[%clk 0:02:39.2]} 13. Re1 {[%clk 0:02:03.7]} 13... Nb6 {[%clk 0:02:09.4]} 14.
Bb3 {[%clk 0:02:03]} 14... Nd5 {[%clk 0:02:08.9]} 15. Nxd5 {[%clk 0:01:53.8]}
15... cxd5 {[%clk 0:02:09.8]} 16. c3 {[%clk 0:01:51.2]} 16... Be6 {[%clk
0:02:05.5]} 17. Ne5 {[%clk 0:01:51]} 17... b5 {[%clk 0:01:56.7]} 18. Qd3 {[%clk
0:01:47.2]} 18... Qb6 {[%clk 0:01:31.2]} 19. a3 {[%clk 0:01:45.2]} 19... a5
{[%clk 0:01:30.7]} 20. h4 {[%clk 0:01:29.1]} 20... h5 {[%clk 0:01:26.4]} 21. Nf3
{[%clk 0:00:42.6]} 21... Bf6 {[%clk 0:01:25.5]} 22. Rac1 {[%clk 0:00:26.9]}
22... Rab8 {[%clk 0:01:07.7]} 23. Ne5 {[%clk 0:00:20.2]} 23... b4 {[%clk
0:01:00.8]} 24. cxb4 {[%clk 0:00:18.6]} 24... axb4 {[%clk 0:01:01.7]} 25. a4
{[%clk 0:00:19.2]} 25... Rbc8 {[%clk 0:00:59.1]} 26. Nf3 {[%clk 0:00:16.1]}
26... Kg7 {[%clk 0:00:55]} 27. g3 {[%clk 0:00:11.2]} 27... f4 {[%clk 0:00:54.5]}
28. Kg2 {[%clk 0:00:07.6]} 28... Bf5 {[%clk 0:00:54]} 29. Qd2 {[%clk 0:00:04.3]}
29... fxg3 {[%clk 0:00:54.3]} 30. Kxg3 {[%clk 0:00:03.4]} 30... Be4 {[%clk
0:00:53.4]} 31. Ng5 {[%clk 0:00:03.4]} 31... Rxc1 {[%clk 0:00:43]} 32. Rxc1
{[%clk 0:00:03.1]} 32... Bxd4 {[%clk 0:00:40]} 33. Nxe4 {[%clk 0:00:02.8]} 33...
dxe4 {[%clk 0:00:40.9]} 34. Kg2 {[%clk 0:00:02.2]} 34... e3 {[%clk 0:00:39.8]}
35. Qe2 {[%clk 0:00:02.6]} 35... exf2 {[%clk 0:00:39.2]} 36. Rd1 {[%clk
0:00:03.2]} 36... Qf6 {[%clk 0:00:36.9]} 37. Rf1 {[%clk 0:00:02.4]} 37... Rd8
{[%clk 0:00:28.5]} 38. Qf3 {[%clk 0:00:02.7]} 38... Qxh4 {[%clk 0:00:23.3]} 39.
Qxf7+ {[%clk 0:00:02.7]} 39... Kh6 {[%clk 0:00:23.9]} 40. Qf3 {[%clk 0:00:02]}
40... Qg5+ {[%clk 0:00:22]} 41. Kh1 {[%clk 0:00:01.9]} 41... Be5 {[%clk
0:00:17.1]} 0-1

[Event "Late-Titled-Tuesday-Blitz-October-03-2023"]
[Site "Chess.com"]
[Date "2023.10.03"]
[Round "4"]
[White "Msb2"]
[Black "Denis_Makhnyov"]
[Result "0-1"]
[WhiteElo "3059"]
[BlackElo "2933"]
[TimeControl "180+1"]
[EndTime "14:38:46 PDT"]
[Termination "Denis_Makhnyov won by checkmate"]

1. d4 {[%clk 0:03:00.9]} 1... d5 {[%clk 0:02:58.7]} 2. c4 {[%clk 0:03:01.3]}
2... e6 {[%clk 0:02:59.2]} 3. Nc3 {[%clk 0:03:01.5]} 3... c6 {[%clk 0:02:59.7]}
4. Nf3 {[%clk 0:03:01.6]} 4... dxc4 {[%clk 0:02:59.1]} 5. e4 {[%clk 0:03:01.8]}
5... b5 {[%clk 0:02:57.2]} 6. Qc2 {[%clk 0:03:02.3]} 6... Nf6 {[%clk 0:02:52]}
7. Be2 {[%clk 0:03:02.8]} 7... Bb7 {[%clk 0:02:50.2]} 8. O-O {[%clk 0:03:03.2]}
8... Be7 {[%clk 0:02:50.6]} 9. Rb1 {[%clk 0:03:02.9]} 9... Nbd7 {[%clk
0:02:47.3]} 10. b3 {[%clk 0:03:02.8]} 10... cxb3 {[%clk 0:02:47.2]} 11. Rxb3
{[%clk 0:03:03.7]} 11... a6 {[%clk 0:02:46.2]} 12. e5 {[%clk 0:03:02.9]} 12...
Nd5 {[%clk 0:02:43.4]} 13. Nxd5 {[%clk 0:03:03.4]} 13... cxd5 {[%clk 0:02:42.4]}
14. Qd2 {[%clk 0:03:04.1]} 14... b4 {[%clk 0:02:11.4]} 15. Qf4 {[%clk
0:03:02.5]} 15... a5 {[%clk 0:02:11.9]} 16. Qg4 {[%clk 0:03:01.9]} 16... g6
{[%clk 0:02:10.7]} 17. Ng5 {[%clk 0:02:56]} 17... Ba6 {[%clk 0:02:01.8]} 18.
Bxa6 {[%clk 0:02:32.6]} 18... Rxa6 {[%clk 0:02:02.7]} 19. Rf3 {[%clk 0:02:33.2]}
19... Bxg5 {[%clk 0:01:21.7]} 20. Bxg5 {[%clk 0:02:34.1]} 20... Qc7 {[%clk
0:01:22.3]} 21. Qf4 {[%clk 0:02:26.4]} 21... Nb6 {[%clk 0:01:21.7]} 22. Bf6
{[%clk 0:02:17]} 22... Rf8 {[%clk 0:01:13.1]} 23. Bg7 {[%clk 0:02:17.3]} 23...
h5 {[%clk 0:00:55.1]} 24. Bxf8 {[%clk 0:01:54.9]} 24... Kxf8 {[%clk 0:00:56]}
25. Qh6+ {[%clk 0:01:54]} 25... Kg8 {[%clk 0:00:52.8]} 26. g4 {[%clk 0:01:47]}
26... hxg4 {[%clk 0:00:51.8]} 27. Rg3 {[%clk 0:01:47.4]} 27... Qd8 {[%clk
0:00:42.4]} 28. Rxg4 {[%clk 0:01:45.6]} 28... Qf8 {[%clk 0:00:43]} 29. Qh3
{[%clk 0:01:33.3]} 29... Nc4 {[%clk 0:00:37.8]} 30. f4 {[%clk 0:01:28.5]} 30...
a4 {[%clk 0:00:32]} 31. f5 {[%clk 0:01:26]} 31... exf5 {[%clk 0:00:31.5]} 32.
Rxf5 {[%clk 0:01:26.9]} 32... b3 {[%clk 0:00:24.5]} 33. Rh4 {[%clk 0:01:17.7]}
33... Qg7 {[%clk 0:00:20.1]} 34. Rf3 {[%clk 0:01:03.7]} 34... Ra8 {[%clk
0:00:16.1]} 35. axb3 {[%clk 0:01:04.1]} 35... a3 {[%clk 0:00:16]} 36. bxc4
{[%clk 0:00:58.8]} 36... a2 {[%clk 0:00:16.2]} 37. Rf1 {[%clk 0:00:59.7]} 37...
a1=Q {[%clk 0:00:15.8]} 38. Rxa1 {[%clk 0:01:00.4]} 38... Rxa1+ {[%clk
0:00:16.4]} 39. Kf2 {[%clk 0:01:01.3]} 39... Ra2+ {[%clk 0:00:16.8]} 40. Ke3
{[%clk 0:01:00.8]} 40... Ra3+ {[%clk 0:00:17]} 41. Kd2 {[%clk 0:00:57.3]} 41...
Rxh3 {[%clk 0:00:17.9]} 42. Rxh3 {[%clk 0:00:58.2]} 42... dxc4 {[%clk
0:00:18.6]} 43. Kc3 {[%clk 0:00:58.8]} 43... Qf8 {[%clk 0:00:18.3]} 44. Rg3
{[%clk 0:00:58.4]} 44... Qa3+ {[%clk 0:00:16.5]} 45. Kxc4 {[%clk 0:00:58.9]}
45... Qa2+ {[%clk 0:00:17.2]} 46. Kc5 {[%clk 0:00:58.2]} 46... Qxh2 {[%clk
0:00:18.1]} 47. Rc3 {[%clk 0:00:57.8]} 47... Qf2 {[%clk 0:00:18.4]} 48. Rc4
{[%clk 0:00:51.1]} 48... g5 {[%clk 0:00:18.1]} 49. Kc6 {[%clk 0:00:51.6]} 49...
g4 {[%clk 0:00:17.7]} 50. d5 {[%clk 0:00:52.1]} 50... Qf3 {[%clk 0:00:17.9]} 51.
Kc5 {[%clk 0:00:38.8]} 51... g3 {[%clk 0:00:18]} 52. d6 {[%clk 0:00:39.7]} 52...
g2 {[%clk 0:00:18.6]} 53. d7 {[%clk 0:00:40.4]} 53... g1=Q+ {[%clk 0:00:18.7]}
54. Kb5 {[%clk 0:00:38.3]} 54... Qd3 {[%clk 0:00:17.7]} 55. d8=Q+ {[%clk
0:00:35.4]} 55... Qxd8 {[%clk 0:00:17.6]} 56. Rg4+ {[%clk 0:00:36.3]} 56... Qxg4
{[%clk 0:00:17.4]} 57. e6 {[%clk 0:00:37.2]} 57... Qxe6 {[%clk 0:00:16.6]} 58.
Ka4 {[%clk 0:00:37]} 58... Qd4+ {[%clk 0:00:15]} 59. Ka3 {[%clk 0:00:37.5]}
59... Qee3+ {[%clk 0:00:15.9]} 60. Ka2 {[%clk 0:00:38.3]} 60... Qdd2+ {[%clk
0:00:16.8]} 61. Kb1 {[%clk 0:00:38.8]} 61... Qee1# {[%clk 0:00:17.7]} 0-1